Cogmind - Beta 10.1 @@@ ROGUE MODE // 2021.04.26 @ 10:45:16 Player: Farfid Result: Destroyed by D-53 Grenadier with Mini Grenade Launcher Performance ------------- Evolutions (0) 0 Regions Visited (2) 400 Robots Destroyed (4) 20 Value Destroyed (101) 101 Prototype IDs (0) 0 Alien Tech Used (0) 0 Bonus (0) 0 TOTAL SCORE: 521 Bonus ------- None Cogmind --------- Core Integrity 0/250 Matter 295/300 Energy 100/100 System Corruption 0% Temperature Cool (0) Movement Core (50) Location -10/Mines Parts ------- > --- POWER (1) -------- (None) > --- PROPULSION (2) --- (None) > --- UTILITY (2) ------ (None) > --- WEAPON (2) ------- (None) > --- INVENTORY (4) ---- Large Storage Unit Large Storage Unit Light Assault Rifle Stasis Trap (100%) Peak State ------------ > --- POWER ------------ Ion Engine > --- PROPULSION ------- Wheel Wheel > --- UTILITY ---------- Improved Heat Sink Large Storage Unit > --- WEAPON ----------- Assault Rifle Assault Rifle > --- INVENTORY -------- Large Storage Unit Large Storage Unit Light Assault Rifle Stasis Trap Stasis Trap Stasis Trap Stasis Trap [Rating: 10] Favorites ----------- Power Ion Engine Engine Ion Engine Propulsion Wheel Wheel Wheel Utility Large Storage Unit Device Improved Heat Sink Storage Large Storage Unit Weapon Assault Rifle Ballistic Gun Assault Rifle Build | -11 -10 -10 ------- Run | Scr Mat Min Slots Evolved . | . . . Power . | . . . Propulsion . | . . . Utility . | . . . Weapon . | . . . Parts Attached 8 | 6 1 1 Power 1 | 1 . . Engine 1 | 1 . . Core . | . . . Reactor . | . . . Propulsion 2 | 2 . . Treads . | . . . Leg . | . . . Wheel 2 | 2 . . Hover . | . . . Flight . | . . . Utility 3 | 1 1 1 Device 1 | . . 1 Storage 2 | 1 1 . Processor . | . . . Hackware . | . . . Protection . | . . . Artifact . | . . . Weapon 2 | 2 . . Energy Gun . | . . . Energy Cannon . | . . . Ballistic Gun 2 | 2 . . Ballistic Cannon . | . . . Launcher . | . . . Special Weapon . | . . . Impact Weapon . | . . . Slashing Weapon . | . . . Piercing Weapon . | . . . Special Melee Weapon . | . . . Unidentified Prototypes . | . . . Parts Lost 3 | . . 3 Power . | . . . Propulsion 2 | . . 2 Utility 1 | . . 1 Weapon . | . . . Highest Loss Streak 3 | . . 3 Average Slot Usage (%) 85 | . 85 85 Engine 14 | . 14 14 Wheel 26 | . 28 25 Device 2 | . . 4 Storage 13 | . 14 13 Ballistic Gun 28 | . 28 28 Naked Turns 4 | . . 4 Heaviest Build 26 | 13 25 26 Greatest Support 20 | 20 20 20 Greatest Overweight (x) 2 | 1 1 2 Average Overweight (x) . | . . 1 Largest Inventory Capacity 12 | 6 12 10 Average Capacity 8 | 4 8 9 Most Carried 8 | 4 3 8 Average Carried 3 | 1 1 5 Final Capacity 10 | 6 10 4 Final Carried 4 | . 2 4 Class Distribution -------------------- 100% | Mutant Dominant Class ---------------- Mutant | -10/Materials Mutant | -10/Mines Resources | -11 -10 -10 ----------- Run | Scr Mat Min Matter Collected 332 | 204 . 128 Remotely . | . . . Salvage Created 128 | . . 128 Parts 4 | . . 4 Haulers Intercepted . | . . . Recyclers Shooed 1 | . . 1 Parts Field Recycled . | . . . Retrieved Matter . | . . . Parts Self-Destructed . | . . . Prevented . | . . . Kills | -11 -10 -10 ------- Run | Scr Mat Min Combat Hostiles Destroyed 4 | . . 4 Guns 4 | . . 4 Classes Destroyed 2 | . . 2 Swarmer 2 | . . 2 Grunt 2 | . . 2 Best Kill Streak 2 | . . 2 Combat Bots Only 2 | . . 2 Max Kills in Single Turn 1 | . . 1 Gunslinging . | . . . Exploded . | . . . Melee . | . . . Uniques/NPCs Destroyed . | . . . Combat | -11 -10 -10 -------- Run | Scr Mat Min Damage Taken 630 | . . 630 Core 273 | . . 273 Absorbed by Shields . | . . . Core Remaining (%) 100 | 100 . . Volleys Fired 12 | . 1 11 Largest 2 | . 2 2 Hottest 40 | . 40 40 Shots Fired 24 | . 2 22 Gun 24 | . 2 22 Cannon . | . . . Launcher . | . . . Special . | . . . Kinetic 24 | . 2 22 Thermal . | . . . Explosive . | . . . Electromagnetic . | . . . Robot Hit Streak 10 | . 1 10 Robot Miss Streak 2 | . 1 2 Penetration Max . | . . . Secondary Targets 1 | . . 1 Max Gunslinging Chain 1 | . . 1 Shots Hit Robots 16 | . 1 15 Core Hits 7 | . . 7 Critical Hits . | . . . Critical Kills . | . . . Critical Parts Destroyed . | . . . Melee Attacks . | . . . Impact . | . . . Slashing . | . . . Piercing . | . . . Sneak Attacks . | . . . Combat Hostiles . | . . . Follow-up Attacks . | . . . Damage Inflicted 213 | . 13 200 Guns 213 | . 13 200 Cannons . | . . . Explosions . | . . . Melee . | . . . Ramming . | . . . Kinetic 213 | . 13 200 Thermal . | . . . Explosive . | . . . Electromagnetic . | . . . Impact . | . . . Slashing . | . . . Piercing . | . . . Highest Corruption . | . . . Average Corruption . | . . . Corruption Purged . | . . . Overload Shots . | . . . Overflow Damage . | . . . Projectiles . | . . . Explosions . | . . . Melee . | . . . Knockbacks . | . . . Impact . | . . . Kinetic . | . . . Secondary . | . . . Self-Inflicted Damage . | . . . Shots . | . . . Rammed . | . . . Targets Rammed . | . . . Kicked . | . . . Crushed . | . . . Highest Temperature 2 | . . 2 Average Temperature 2 | . . 2 Received Heat Transfer 57 | . . 57 Siege Activations . | . . . Robots Corrupted . | . . . Combat Hostiles . | . . . Parts Fried . | . . . Impact Corruptions . | . . . Robots Melted . | . . . Combat Hostiles . | . . . Parts Melted . | . . . Heat Transferred . | . . . Parts Sabotaged . | . . . Parts Stolen . | . . . Parts Stripped . | . . . Power Chain Reactions . | . . . Missiles Intercepted . | . . . Alert | -11 -10 -10 ------- Run | Scr Mat Min Peak Influence 150 | . 79 150 Initial 30 | . . 30 Average 68 | . 44 104 Maximum Alert Level . | . . . Low Security (%) 100 | 100 100 100 Level 1 . | . . . Level 2 . | . . . Level 3 . | . . . Level 4 . | . . . Level 5 . | . . . High Security . | . . . Max Security . | . . . Squads Dispatched 2 | . 2 . Investigation 2 | . 2 . Extermination . | . . . Reinforcement . | . . . Assault . | . . . Garrison . | . . . Intercept . | . . . Construction Impeded . | . . . Haulers Reinforced . | . . . Stealth | -11 -10 -10 --------- Run | Scr Mat Min Distress Signals . | . . . Communications Jammed . | . . . Distress Signals . | . . . Times Spotted 20 | . 1 19 Peak Tracking Total 10 | . 1 10 Tactical Retreats 1 | . . 1 Traps | -11 -10 -10 ------- Run | Scr Mat Min Traps Triggered . | . . . Indirectly . | . . . Trap Hack Attempts . | . . . Triggered . | . . . Disarmed . | . . . Reprogrammed . | . . . Reused 1 | . . 1 Traps Extracted . | . . . Installed 1 | . . 1 Triggered . | . . . Machines | -11 -10 -10 ---------- Run | Scr Mat Min Machines Disabled . | . . . Max in Single Turn . | . . . Machines Sabotaged . | . . . Garrisons Compromised . | . . . Overloaded Fab Kills . | . . . Fab Network Shutdowns . | . . . Hacking | -11 -10 -10 --------- Run | Scr Mat Min Machines Accessed 3 | . 3 . Terminals 1 | . 1 . Fabricators . | . . . Repair Stations . | . . . Recycling Units 2 | . 2 . Scanalyzers . | . . . Garrison Access . | . . . Total Hacks 9 | . 9 . Successful 4 | . 4 . Failed 5 | . 5 . Catastrophic . | . . . Database Lockouts . | . . . Manual 2 | . 2 . Terminals 7 | . 7 . Fabricators . | . . . Repair Stations . | . . . Recycling Units 2 | . 2 . Scanalyzers . | . . . Garrison Access . | . . . Terminal Hacks 2 | . 2 . Locate Traps 1 | . 1 . Recall Investigation 1 | . 1 . Fabricator Hacks . | . . . Repair Station Hacks . | . . . Recycling Unit Hacks . | . . . Scanalyzer . | . . . Garrison Access Hacks . | . . . Unauthorized Hacks 2 | . 2 . Terminals . | . . . Fabricators . | . . . Repair Stations . | . . . Recycling Units 2 | . 2 . Tunnel 2 | . 2 . Scanalyzers . | . . . Garrison Access . | . . . Data Cores Recovered . | . . . Used . | . . . Hacking Detections 1 | . 1 . Full Trace Events . | . . . Feedback Events . | . . . Feedback Blocked . | . . . Robot Schematics Acquired . | . . . Robots Built . | . . . Matter . | . . . Time . | . . . Total Robot Build Rating . | . . . Part Schematics Acquired . | . . . Parts Built . | . . . Matter . | . . . Time . | . . . Total Part Build Rating . | . . . Parts Repaired . | . . . Time . | . . . Parts Recycled . | . . . Recycled Matter . | . . . Retrieved Matter . | . . . Retrieved Components . | . . . Parts Scanalyzed . | . . . Part Schematics Acquired . | . . . Parts Damaged . | . . . Bothacking | -11 -10 -10 ------------ Run | Scr Mat Min Used RIF Installer . | . . . Robots Hacked . | . . . Non-combat . | . . . Combat . | . . . Robot Hacks Applied . | . . . Relay Couplers Released . | . . . Robots Rewired . | . . . Allies Hacked . | . . . Hacks Repelled . | . . . Allies | -11 -10 -10 -------- Run | Scr Mat Min Total Allies . | . . . Largest Group . | . . . Highest-Rated Group . | . . . Highest-Rated Ally . | . . . Total Orders . | . . . Ally Attacks . | . . . Total Damage . | . . . Kills . | . . . Allies Corrupted . | . . . Allies Melted . | . . . Intel | -11 -10 -10 ------- Run | Scr Mat Min Robot Analysis Total . | . . . Derelict Logs Recovered 1 | . . 1 Drone Launches . | . . . Drone Recoveries . | . . . Exploration | -11 -10 -10 ------------- Run | Scr Mat Min Turns Passed 426 | 39 187 200 Spaces Moved 397 | 43 198 156 Core 35 | 28 . 7 Treads . | . . . Legs . | . . . Wheels 362 | 15 198 149 Hover . | . . . Flight . | . . . Fastest Speed 50 | 50 80 90 Average Speed 86 | 66 86 93 Slowest Speed 150 | 100 90 150 Overloaded Moves . | . . . Propulsion Burnouts . | . . . Robots Hopped . | . . . Cave-ins Triggered . | . . . Exploration Rate (%) 29 | 3 38 46 Regions Visited 2 Branch Regions 1 Pre-discovered Areas 2 | . 2 . Known Exits Taken . | . . . Unknown Exits Taken 2 | 1 1 . Scrap Searched . | . . . Spaces Dug . | . . . Terrain Destroyed . | . . . Melee . | . . . Projectile . | . . . AOE . | . . . Terrain Rammed . | . . . Walls Destroyed . | . . . Machines Disabled . | . . . Actions | -11 -10 -10 --------- Run | Scr Mat Min Total 455 | 52 212 191 Wait 20 | . 9 11 Move 395 | 42 197 156 Hop . | . . . Pick Up 13 | 4 3 6 Fast Attach 2 | 2 . . Attach 6 | 4 1 1 Detach . | . . . Swap . | . . . Drop 6 | . 1 5 Fire 12 | . 1 11 Melee . | . . . Ram . | . . . Kick . | . . . Crush . | . . . Escape Stasis . | . . . Rewire . | . . . Trap 1 | . . 1 Miscellaneous . | . . . Route ------- -11/Scrapyard -10/Materials (discovered 2 exits: [*Min x2]) -10/Mines (discovered 2 exits: [*Mat x2]) History --------- Turn | Location | Event 21 | -11/Scrapyard | Discovered new exit (range 15) 40 | -11/Scrapyard | Entered Materials 74 | -10/Materials | Discovered new exit (range 5) 166 | -10/Materials | Discovered new exit (range 12) 227 | -10/Materials | Entered Mines 288 | -10/Mines | Found a hidden stash of uninstalled traps 310 | -10/Mines | Build established: Mutant 319 | -10/Mines | Discovered new exit (range 5) 375 | -10/Mines | Discovered new exit (range 5) 391 | -10/Mines | Assembled infested the area 397 | -10/Mines | Learned Materials stockpile data 413 | -10/Mines | Core integrity fell below 50% 423 | -10/Mines | Received a Rocket Launcher from a helpful Derelict 424 | -10/Mines | Core integrity fell below 20% 427 | -10/Mines | Destroyed by D-53 Grenadier with Mini Grenade Launcher Last Messages --------------- 00416_ as-27103 destroyed. 00416_ as-95997 destroyed. 00417_ A derelict emerges from the shadows. 00418_ 56-EA1(g): "Some of my friends down here think you need a mining laser when you travel the depths." 00418_ as-68532 destroyed. 00419_ 56-EA1(g): "You know what I say? NO!" 00419_ K-01 Serf collects debris. 00419_ as-22849 destroyed. 00420_ 56-EA1(g): "Everyone knows a good old rocket launcher goes a long way." 00421_ 56-EA1(g): "Need to get rid of a swarm? Done. Need a big hole in the wall? Done." 00422_ 56-EA1(g): "Need a small hole in the wall? Leave that to the mining laser wimps, I say!" 00422_ Dropped Assault Rifle. 00423_ 56-EA1(g): "Would you like a rocket launcher? I know I would if I were you, so I'm going to lend you mine." 00423_ 56-EA1(g) slips back into the shadows. 00423_ Dropped Ion Engine. 00427_ K-01 Serf collects debris. Map ----- +----------------------------------------------------+ | ??????????? ## #### < #???? | | ?????????????????##### ##? #???? | | ?????????????????????## #??######???? | | ?????????????????????## #???????????? | | ?????????????????##### ##???????????? | | ????????????????## #########???????? | | ????????????????# ## #???????? | | ??????????? ## ## """ #???????? | | ????????????# #?## ## """ #???????? | | ????????????## ???## ## """ #???????? | | ?????????????# ?????## ## #???????? | | ?????????????? ???????# < #???????? | | ??????????????? ????????# ## #???????? | | ?????????????????????????# ## #???????? | | ?????????????????????????# ## #???????? | | ???????????????????####### ##########???????? | | ???????????????????# k ##??????????????? | | ???????????????????# ##### ##?????????????? | | ?????????????????### #?## #?????????????? | | ????????????###### ## #?????????????? | | ?????????? #?????????????? | | ????????????????# #?????????????? | | ????????????????## #?????????????? | | ?????????????????## #?????????????? | | ??????????????????#### ##?????????????? | | ?????????????????????# @ #??????????????? | | ?????????????????????# #??????????????? | | ?????????????????????# ##?????????????? | | ?????????????????????# #?????????????? | | ?????????????????????### % ##?????????????? | | ??????????????????????# k d #??????????????? | | ????????????????????# d #??????????????? | | ???????????????????? ! #??????????????? | | ???????????????????# % ??????????????? | | ???????????????????# ?????????????? | | ???????????????????## ?????????????? | | ???????????????????? ] #????????????? | | ???????????????????## #????????????? | | ????????????????????## #????????????? | | ?????????????????????## #?????????????? | | ??????????????????????## ??????????????? | | ???????????????????????# ??????????????? | | ????????????????????????###* ??????????????? | | ??????????????????????????! ??????????????? | | ??????????????????????????? ?????????????????? | | ?????????????????????????????????????????????? | | ?????????????????????????????????????????????? | | ?????????????????????????????????????????????? | | ?????????????????????????????????????????????? | | | +----------------------------------------------------+ Best States ------------- Heat Dissipation 39 Energy Generation 10 Energy Capacity 250 Matter Stores 295 Matter Capacity 300 Sight Range 16 Terrain Scan Density 10 Evasion (%) 50 Item Schematics ----------------- None Robot Schematics ------------------ None Fabricated ------------ Nothing Alien Tech Used ----------------- None Achievements -------------- None Challenges ------------ None Game ------ Seed NeutronPotentialRigger Manual? 0 Play Time 00:06:43 Cumulative 146.2 hours Start 2021.04.26 @ 10:40:34 End 2021.04.26 @ 10:45:16 Sessions 1 Manual Loads 0 Difficulty Rogue Special Mode None Game No. 60 Rogue 60 Adventurer 0 Explorer 0 Win Type - Total 2 Types 2/0/0/0/0/0/0/0/0 Lore% 59 Gallery% 70 Achievement% 52 Wizard Run 0 Options --------- ASCII 0 Keyboard 0 Movement Mouse Keybinds 0 Fullscreen 2 Font 12/Smallcaps Map View 83x54 Tactical HUD 1 Map Filters NONE Filters NONE Steam X RUN: 86d1f76b-931f-43e2-94bd-c7805d4070dc